bitfinex/quotes_ETHUSD_20251023
["timestamp","ask_amount","ask_price","bid_price","bid_amount"]
[1761194456036,0.301,3843.9,3843.8,2.60159217]
[1761194456250,0.301,3843.9,3843.8,3.10847217]
[1761194456453,0.301,3843.9,3843.8,3.55727217]
[1761194456631,0.301,3843.9,3843.8,4.53439382]
[1761194458327,0.301,3843.9,3843.8,4.08559382]
[1761194458526,0.301,3843.9,3843.8,4.55969382]
[1761194459941,0.301,3843.9,3843.8,6.11489382]
[1761194461933,0.03730063,3844.0,3843.9,4.66360449]
[1761194462109,1e-08,3844.0,3843.9,6.72557948]
[1761194462309,1e-08,3844.0,3843.9,6.69956424]
[1761194463012,1e-08,3844.0,3843.9,7.62512222]
[1761194463263,1e-08,3844.0,3843.9,6.69956424]
[1761194464062,0.00606667,3845.0,3844.9,4.66292787]
[1761194464350,0.00606667,3845.0,3844.9,7.99592787]
[1761194464534,0.00606667,3845.0,3844.9,8.47002787]
[1761194464716,0.00606667,3845.0,3844.9,8.66287038]
[1761194464911,0.00606667,3845.0,3844.9,8.79327038]
[1761194465148,0.00606667,3845.0,3844.9,9.04843628]
[1761194465312,0.00606667,3845.0,3844.9,8.85559377]
[1761194467066,0.00606667,3845.0,3844.9,9.83657377]
[1761194469765,1e-08,3845.0,3844.9,9.83657377]
[1761194470838,0.055,3847.5,3844.9,9.83657377]
[1761194470839,0.055,3847.5,3846.7,2.59963085]
[1761194471045,0.0997,3847.3,3846.9,2.59949569]
[1761194471269,0.0997,3847.3,3846.9,2.72909569]
[1761194471475,0.055,3847.5,3846.9,2.72909569]
[1761194471772,0.1002,3847.3,3846.9,2.72909569]
[1761194472073,0.1552,3847.4,3846.9,2.72909569]
[1761194472279,0.2619,3847.6,3846.3,0.19284251]
[1761194472441,0.0663,3846.9,3846.8,2.59956327]
[1761194472646,0.1667,3846.9,3846.8,5.93656327]
[1761194472956,0.1667,3846.9,3846.4,2.59981145]
[1761194473158,0.1004,3846.8,3846.2,3.337]
[1761194473347,0.1004,3846.8,3845.7,1.5552]
[1761194473547,0.39630392,3846.8,3845.7,5.93830606]
[1761194473755,0.1487,3845.8,3845.7,2.60030606]
[1761194475686,0.1487,3845.8,3844.4,2.60118614]
[1761194475687,0.2496,3845.8,3844.4,2.60118614]
[1761194475886,0.2496,3845.8,3844.6,3.337]
[1761194476186,0.1487,3845.8,3845.7,2.60030683]
[1761194476965,0.2496,3845.8,3845.7,2.60030683]
[1761194477384,0.1487,3845.8,3845.7,2.60030683]
[1761194478401,0.1487,3845.8,3845.3,3.34]
[1761194478597,0.1487,3845.8,3845.7,2.60030683]
[1761194478796,0.1009,3846.1,3845.9,2.60012082]
[1761194479392,0.1009,3846.1,3846.0,2.600104]
[1761194479595,0.1014,3846.5,3846.1,2.60003578]
[1761194479997,0.1014,3846.5,3846.2,2.59995442]
[1761194480698,0.1014,3846.5,3846.1,2.60001794]
[1761194481400,0.1014,3846.5,3846.2,2.59994934]
[1761194481610,0.1014,3846.5,3846.4,2.59983361]
[1761194481983,0.0663,3846.9,3846.5,2.59975383]
[1761194482298,0.0663,3846.9,3846.8,2.59956327]
[1761194482502,0.0663,3846.9,3846.8,2.72916327]
[1761194483092,0.1677,3846.9,3846.8,2.72916327]
[1761194483398,0.1677,3846.9,3846.8,0.1296]
[1761194484001,0.0687,3846.9,3846.8,2.72916167]
[1761194484203,0.1677,3846.9,3846.8,2.72916167]
[1761194484411,0.1677,3846.9,3846.8,0.1296]
[1761194484773,0.0687,3846.9,3846.8,0.1296]
[1761194484973,0.1677,3846.9,3846.8,0.1296]
[1761194486808,0.46368444,3846.9,3846.8,0.1296]
[1761194486978,0.1677,3846.9,3846.8,0.1296]
[1761194488107,0.1677,3846.9,3846.2,2.59995206]
[1761194488306,0.1677,3846.9,3846.7,0.1296]
[1761194488307,0.099,3846.8,3846.7,0.1296]
[1761194488518,0.72869745,3846.8,3846.7,0.1296]
[1761194491529,2.59981657,3846.5,3846.2,0.1296]
[1761194491695,5.93484811,3846.4,3846.2,0.1296]
[1761194491901,0.85345608,3846.3,3846.2,0.1296]
[1761194492100,0.95245608,3846.3,3846.2,0.1296]
[1761194493851,0.62969745,3846.8,3845.3,0.4397]
[1761194493998,0.62969745,3846.8,3846.4,2.59981127]
[1761194493999,3.335,3846.7,3846.4,2.59981127]
[1761194494198,3.434,3846.7,3845.7,1.9949]
[1761194494398,3.434,3846.7,3846.6,0.1296]
[1761194494813,3.335,3846.7,3846.6,0.1296]
[1761194495747,0.0687,3846.9,3846.6,0.1296]
[1761194495909,0.0687,3846.9,3846.1,0.4397]
[1761194496110,0.0687,3846.9,3846.8,0.1296]
[1761194497313,0.0687,3846.9,3846.8,2.72916327]
[1761194498033,0.19284251,3847.0,3846.9,2.59949569]
[1761194498631,0.29184251,3847.0,3846.8,0.1296]
[1761194498930,0.0687,3846.9,3846.8,2.72916327]
[1761194499455,0.1677,3846.9,3846.8,0.1296]
[1761194499658,0.1677,3846.9,3846.8,2.72916327]
[1761194499858,0.1677,3846.9,3846.8,0.1296]
[1761194500016,0.1677,3846.9,3846.8,2.72916327]
[1761194500216,0.0687,3846.9,3846.8,2.72916327]
[1761194503662,0.0687,3846.9,3846.8,0.1296]
[1761194503866,0.1677,3846.9,3846.8,0.1296]
[1761194505070,0.46369441,3846.9,3846.8,0.1296]
[1761194505269,0.1677,3846.9,3846.8,0.1296]
[1761194506168,0.1677,3846.9,3846.5,0.1296]
[1761194506370,6.02956327,3846.8,3846.5,0.1296]
[1761194506736,2.69863964,3846.7,3846.5,0.1296]
[1761194506936,0.60983396,3846.6,3845.3,0.6905489]
[1761194507140,2.59976602,3846.5,3846.1,0.1304]
[1761194507457,2.69876602,3846.5,3846.1,0.1304]
[1761194507662,0.099,3846.4,3846.1,0.1304]
[1761194507860,3.331,3846.3,3846.1,0.1304]
[1761194508060,3.99496,3846.3,3846.1,0.1304]
[1761194508259,0.099,3846.2,3846.1,0.1304]
[1761194509336,0.099,3846.2,3845.7,2.6003015]
[1761194509541,0.099,3846.2,3845.8,2.60022441]
[1761194510172,0.19284251,3847.0,3845.9,0.46570171]
[1761194510348,0.19284251,3847.0,3846.0,0.6905489]
[1761194510552,0.19284251,3847.0,3846.5,2.59974427]
[1761194510753,0.19284251,3847.0,3846.5,2.5997657]
[1761194510968,0.3224,3846.9,3846.5,2.5997105]
[1761194511373,0.099,3846.8,3846.4,2.59982006]
[1761194511692,0.099,3846.8,3846.4,2.59982092]
[1761194512343,0.099,3846.8,3846.5,2.59976327]
[1761194512573,0.099,3846.8,3846.3,2.59985175]
[1761194512778,0.099,3846.8,3846.2,2.59995895]
[1761194513087,0.099,3846.8,3846.3,2.5999004]
[1761194513287,0.099,3846.8,3846.2,2.59996347]
[1761194513493,3.334,3846.7,3846.5,2.59975909]
[1761194513848,3.334,3846.7,3846.3,2.59983817]
[1761194514650,3.334,3846.7,3845.8,0.26002244]
[1761194514651,0.099,3846.6,3845.9,2.60010453]
[1761194514850,0.099,3846.6,3846.2,2.59996302]
[1761194515051,0.099,3846.6,3846.3,2.59988938]
[1761194515268,0.099,3846.6,3846.3,2.59989864]
[1761194515895,0.099,3846.6,3846.3,2.59989654]
[1761194516080,3.334,3846.7,3845.8,0.26002244]
[1761194516392,3.334,3846.7,3846.3,2.59988078]
[1761194516693,3.433,3846.7,3846.2,2.59995043]
[1761194517051,3.334,3846.7,3845.9,0.4397]
[1761194517476,3.334,3846.7,3846.4,2.59977523]
[1761194517677,3.334,3846.7,3846.5,2.59974809]
[1761194518259,3.334,3846.7,3846.4,2.59981366]
[1761194518477,3.334,3846.7,3846.3,2.59985278]
[1761194518683,3.334,3846.7,3846.4,2.59982716]
[1761194519073,3.433,3846.7,3846.4,2.59982716]
[1761194519272,3.433,3846.7,3846.6,0.1296]
[1761194522370,3.334,3846.7,3846.6,0.1296]
[1761194524361,0.001,3846.9,3846.6,0.1296]
[1761194524679,0.001,3846.9,3846.8,2.72916327]
[1761194524884,0.001,3846.9,3846.8,3.30870885]
[1761194525081,0.001,3846.9,3846.8,3.77530885]
[1761194527592,0.001,3846.9,3846.8,9.06178448]
[1761194527792,0.9188568,3848.3,3847.5,2.59909031]
[1761194528093,0.9188568,3848.3,3847.5,3.06569031]
[1761194528269,0.9188568,3848.3,3847.5,7.05638084]
[1761194529170,0.9188568,3848.3,3847.5,3.72338084]
[1761194529375,0.9188568,3848.3,3847.5,7.05638084]
[1761194529889,0.9188568,3848.3,3847.5,3.72338084]
[1761194531090,0.1002,3848.2,3847.5,2.59909031]
[1761194531281,0.9188568,3848.3,3847.5,3.06569031]
[1761194532395,0.9188568,3848.3,3847.5,2.59909031]
[1761194532568,0.2119,3847.8,3847.3,2.59922209]
[1761194532764,0.2119,3847.8,3847.5,2.59909031]
[1761194533081,0.9188568,3848.3,3847.5,2.59909031]
[1761194533265,0.9188568,3848.3,3847.5,3.06569031]
[1761194533893,0.9188568,3848.3,3847.5,5.05407937]
[1761194534094,4.16442333,3851.5,3847.5,5.05407937]
[1761194534095,0.1473,3849.9,3849.2,0.11548154]
[1761194534284,0.887,3849.8,3849.2,0.11548154]
[1761194534482,0.50688,3849.7,3849.2,0.11548154]
[1761194534710,0.9925,3849.8,3849.2,0.11548154]
[1761194534711,0.164668,3849.6,3849.2,0.11548154]
[1761194535098,0.270168,3849.6,3849.2,0.11548154]
[1761194535297,0.164668,3849.6,3849.2,0.11548154]
[1761194535823,4.31756502,3849.6,3849.2,0.11548154]
[1761194536000,2.59786192,3849.4,3849.2,0.11548154]
[1761194536330,2.59780745,3849.4,3849.2,0.11548154]
[1761194536522,0.1055,3849.3,3849.2,0.11548154]
[1761194536692,2.70337493,3849.3,3849.2,0.11548154]
[1761194536888,4.25857493,3849.3,3849.2,0.11548154]
[1761194537203,6.10901524,3849.3,3849.2,0.11548154]
[1761194537584,6.23861524,3849.3,3849.2,0.11548154]
[1761194537785,2.59844109,3848.5,3848.3,0.1296]
[1761194538000,5.95344109,3848.5,3848.3,0.01411456]
[1761194538195,2.92268248,3848.4,3848.3,0.01411456]
[1761194538403,2.92268248,3848.4,3848.2,0.1296]
[1761194538404,0.95196825,3848.4,3848.2,0.1296]
[1761194539128,2.59786767,3849.4,3847.1,0.2177]
[1761194539129,3.355,3848.3,3847.9,0.4666]
[1761194539430,3.355,3848.6,3848.0,2.59875259]
[1761194539800,3.355,3848.6,3848.1,2.59867199]
[1761194540125,3.356,3848.7,3847.2,3.356]
[1761194540432,3.356,3848.7,3848.4,2.59847034]
[1761194541308,3.356,3848.7,3848.5,2.59841314]
[1761194541628,3.356,3848.7,3847.8,2.59882376]
[1761194541791,3.356,3848.7,3848.5,2.59840659]
[1761194541992,3.356,3848.7,3848.5,2.5984066]
[1761194542213,3.356,3848.7,3848.4,2.5984606]
[1761194542420,3.356,3848.7,3848.3,2.59853044]
[1761194542623,3.356,3848.7,3847.4,1.36253811]
[1761194542936,3.356,3848.7,3848.4,2.59847543]
[1761194543139,3.356,3848.7,3848.3,2.59849788]
[1761194543336,3.356,3848.7,3847.9,2.59879326]
[1761194543647,3.356,3848.7,3847.5,0.4666]
[1761194543815,3.356,3848.7,3847.5,1.27206345]
[1761194544019,3.356,3848.7,3847.9,2.59882013]
[1761194544215,2.59840285,3848.6,3847.7,2.59894005]
[1761194544444,5.95429909,3848.7,3847.1,7.72819983]
[1761194544752,5.95428656,3848.7,3847.8,2.59886642]
[1761194545122,0.85524361,3848.6,3848.0,2.5987502]
[1761194545859,2.59834797,3848.6,3847.8,2.59885005]
[1761194546021,5.95428605,3848.7,3847.8,2.59885005]
[1761194546222,5.95428605,3848.7,3847.9,2.59880974]
[1761194546428,3.356,3848.7,3848.0,2.5987487]
[1761194546751,3.356,3848.7,3848.1,2.59863107]
[1761194546950,3.6916,3848.7,3848.2,2.59860627]
[1761194549146,3.6916,3848.7,3848.5,0.1296]
[1761194550078,3.351,3848.6,3848.5,0.1296]
[1761194550656,3.351,3848.6,3848.5,3.19221496]
[1761194551162,3.351,3848.6,3848.5,0.1296]
[1761194552564,3.351,3848.6,3848.5,2.72801496]
[1761194552773,3.351,3848.6,3848.5,3.19221496]
[1761194553268,3.351,3848.6,3848.5,0.1296]
[1761194555547,3.351,3848.6,3848.5,2.72801496]
[1761194556481,3.351,3848.6,3848.5,0.1296]
[1761194556686,3.351,3848.6,3848.5,2.72801496]
[1761194557396,3.351,3848.6,3848.5,0.1296]
[1761194560071,3.351,3848.6,3848.5,0.5938]
[1761194560765,3.351,3848.6,3848.5,0.1296]
[1761194561296,6.28444745,3848.6,3848.5,0.1296]
[1761194561505,3.6848,3848.6,3848.5,0.1296]
[1761194562693,2.59847271,3848.5,3847.8,0.002]
[1761194563016,2.59847271,3848.5,3848.2,0.1296]
[1761194563168,3.49958816,3848.5,3848.2,0.1296]
[1761194563369,3.49958816,3848.5,3847.8,0.002]
[1761194563370,2.59860909,3848.3,3847.8,0.002]
[1761194563588,3.344,3848.2,3847.8,0.002]
[1761194563790,3.344,3848.2,3847.8,2.60088388]
[1761194563995,3.344,3848.2,3847.8,0.002]
[1761194567220,5.94264588,3848.2,3847.8,0.002]
[1761194567420,6.7967321,3848.2,3847.8,0.002]
[1761194567785,2.59868596,3848.1,3847.8,0.002]
[1761194567990,0.1119,3847.9,3847.8,0.002]
[1761194568696,4.19811324,3848.2,3847.8,0.002]
[1761194570911,3.344,3848.2,3847.8,0.002]
[1761194572217,3.344,3848.2,3847.8,2.60087819]
[1761194572636,3.344,3848.2,3847.9,3.06299917]
[1761194573140,3.344,3848.2,3848.0,0.4642]
[1761194573323,3.344,3848.2,3847.8,2.60086561]
[1761194573324,3.344,3848.2,3847.8,3.06506561]
[1761194573530,3.344,3848.2,3848.1,0.1296]
[1761194574763,5.94261753,3848.2,3848.1,0.1296]
[1761194574930,6.79673113,3848.2,3848.1,0.1296]
[1761194575126,2.59875446,3848.0,3847.8,0.002]
[1761194575327,3.336,3847.9,3847.8,0.002]
[1761194575527,5.93482013,3847.9,3847.8,0.002]
[1761194575747,4.27475513,3847.9,3847.8,0.1316]
[1761194577526,3.336,3847.9,3847.8,0.1316]
[1761194580968,3.336,3847.9,3847.8,0.002]
[1761194585331,5.93482013,3847.9,3847.8,0.002]
[1761194586070,3.336,3847.9,3847.8,0.002]
[1761194588155,0.1116,3848.8,3847.8,0.002]
[1761194588375,2.59743639,3850.0,3847.8,0.4723]
[1761194588376,2.584,3848.6,3847.8,0.4723]
[1761194588787,0.001,3848.6,3848.5,2.59841496]
[1761194588999,0.061,3849.5,3849.3,2.59787141]
[1761194589150,0.061,3849.7,3849.4,0.7068]
[1761194589345,0.061,3849.7,3849.4,0.2365]
[1761194589346,3.33,3849.7,3849.4,0.2365]
[1761194589678,3.663,3849.7,3849.4,0.4703]
[1761194590247,6.26061687,3849.7,3848.9,0.2365]
[1761194590577,6.2606101,3849.7,3848.9,2.83462213]
[1761194590775,2.59781999,3849.4,3848.8,0.4703]
[1761194590959,3.33,3849.3,3849.0,0.4703]
[1761194591778,3.33,3849.3,3848.7,0.2365]
[1761194591946,1.5552,3850.3,3848.7,0.7068]
[1761194592151,1.87575962,3851.2,3849.1,2.59797311]
[1761194592152,2.5974167,3850.0,3849.1,2.59797311]
[1761194592351,3.331,3849.9,3849.2,0.4703]
[1761194592749,0.655408,3850.5,3849.2,0.4703]
[1761194592949,5.93018535,3850.4,3849.5,2.5977357]
[1761194593184,2.59722317,3850.3,3849.6,0.4703]
[1761194593475,3.333,3850.4,3849.6,0.4703]
[1761194593675,0.3333,3850.3,3849.6,0.4703]
[1761194594076,3.332,3850.2,3849.6,0.4703]
[1761194594279,5.92927103,3850.2,3849.6,0.4703]
[1761194595279,3.332,3850.2,3850.1,0.2365]
[1761194595797,5.92926767,3850.2,3850.1,0.7068]
[1761194596101,3.332,3850.2,3850.1,0.7068]
[1761194596400,5.92926767,3850.2,3850.1,0.2365]
[1761194597363,2.59737165,3850.1,3849.8,0.4703]
[1761194597566,5.9292937,3850.2,3849.8,0.4703]
[1761194597768,2.59735643,3850.1,3849.7,0.2365]
[1761194598169,2.59735643,3850.1,3849.7,0.8364]
[1761194598565,2.59735643,3850.1,3849.8,0.4703]
[1761194598802,5.9292773,3850.2,3849.8,0.4703]
[1761194599000,3.332,3850.2,3849.8,0.4703]
[1761194599209,5.92927145,3850.2,3849.8,0.4703]
[1761194599799,3.332,3850.2,3849.8,0.4703]
[1761194600105,5.92933012,3850.2,3849.8,0.4703]
[1761194600306,2.59734591,3850.1,3849.8,0.4703]
[1761194600475,5.92928237,3850.2,3849.8,0.4703]
[1761194600805,2.59734823,3850.1,3849.8,0.4703]
[1761194601119,3.332,3850.2,3849.8,0.4703]
[1761194601303,2.59739466,3850.1,3849.7,0.3661]
[1761194601602,2.59739466,3850.1,3849.8,0.4703]
[1761194601789,3.332,3850.2,3849.7,0.3661]
[1761194601790,2.59740604,3850.0,3849.7,0.3661]
[1761194601986,2.59735023,3850.1,3849.7,0.8364]
[1761194602393,5.92932812,3850.2,3849.8,0.4703]
[1761194603018,2.59735624,3850.1,3849.8,0.4703]
[1761194603428,2.59835624,3850.1,3849.8,0.4703]
[1761194604300,0.001,3850.1,3849.8,0.4703]
[1761194604825,0.001,3850.1,3849.7,0.1296]
[1761194605037,2.59752139,3849.9,3849.7,0.1296]
[1761194605231,5.92252139,3849.9,3849.7,0.1296]
[1761194605540,3.325,3849.9,3849.8,0.4463]
[1761194606035,3.325,3849.9,3849.7,0.1296]
[1761194607803,3.325,3849.9,3849.7,0.5759]
[1761194608002,3.325,3849.9,3849.7,0.1296]
[1761194608839,0.001,3850.1,3849.7,0.5916]
[1761194609507,0.001,3850.1,3849.7,0.1296]
[1761194609708,0.34656,3850.1,3849.7,0.1296]
[1761194610132,0.34656,3850.1,3849.7,0.5916]
[1761194610322,0.001,3850.1,3849.7,0.5916]
[1761194611235,3.324,3850.0,3849.7,0.5916]
[1761194612022,3.324,3850.0,3849.7,0.1296]
[1761194612224,3.324,3850.0,3849.7,0.5916]
[1761194613365,0.001,3850.1,3850.0,2.59740259]
[1761194613524,0.001,3850.1,3849.4,3.323]
[1761194613853,0.001,3850.1,3849.4,3.785]
[1761194614032,0.001,3850.1,3849.6,2.59766964]
[1761194614236,0.001,3850.1,3849.6,2.59766379]
[1761194614432,0.001,3850.1,3849.2,0.2267]
[1761194614620,0.001,3850.1,3849.6,2.59764858]
[1761194614823,3.4291,3850.0,3848.8,0.78038121]
[1761194615028,3.4291,3850.0,3847.8,0.002]
[1761194615029,2.59786689,3849.4,3847.8,0.002]
[1761194615231,2.59815056,3848.9,3847.8,0.002]
[1761194615525,3.334,3848.8,3847.8,0.002]
[1761194615755,0.1126,3847.9,3847.8,0.002]
[1761194615959,3.4466,3847.9,3847.8,0.002]
[1761194616258,1.5552,3849.4,3847.8,0.002]
[1761194616461,3.356,3849.1,3847.9,0.462]
[1761194616774,2.59825859,3848.8,3847.9,0.462]
[1761194616929,0.099,3849.0,3847.9,0.462]
[1761194617129,3.356,3849.1,3847.9,0.462]
[1761194617449,2.59835242,3848.6,3847.8,0.002]
[1761194617650,3.357,3848.5,3847.8,0.002]
[1761194617851,0.1129,3849.5,3847.8,0.002]
[1761194617852,3.357,3848.4,3847.8,0.002]
[1761194618056,2.59835699,3850.1,3848.0,1.5552]
[1761194618057,0.001,3850.1,3848.0,1.5552]
[1761194618277,2.59836998,3850.1,3849.0,2.59805671]
[1761194618491,0.001,3850.1,3848.1,1.40922216]
[1761194618642,3.369,3850.0,3849.3,2.59787286]
[1761194619077,3.96572014,3850.0,3848.2,0.3]
[1761194619281,0.50688,3849.8,3848.5,2.59841101]
[1761194619585,0.50688,3849.8,3848.2,2.59861753]
[1761194619586,0.50688,3849.6,3847.8,0.002]
[1761194619874,1.5552,3849.4,3847.9,2.59881617]
[1761194620084,2.59809224,3849.0,3848.0,2.59874093]
[1761194620258,2.59794507,3849.2,3848.0,2.59874093]
[1761194620259,5.9991775,3848.9,3848.0,2.59874093]
[1761194621145,0.25417795,3850.4,3848.1,0.59214918]
[1761194621345,0.1129,3851.1,3848.8,0.2267]
[1761194621565,0.1129,3851.1,3850.0,0.2267]
[1761194621769,1.852,3850.4,3850.0,2.82410259]
[1761194621972,1.852,3850.4,3850.0,0.2267]
[1761194622177,1.852,3850.4,3849.8,3.05952962]
[1761194622344,1.852,3850.4,3849.9,2.59744653]
[1761194622541,1.852,3850.4,3849.8,3.05953644]
[1761194622745,1.852,3850.4,3849.9,2.59746728]
[1761194622980,1.852,3850.4,3849.8,3.05953579]
[1761194623179,1.852,3850.4,3849.6,2.59767181]
[1761194623380,1.852,3850.4,3849.4,0.462]
[1761194623381,1.852,3850.4,3849.9,0.1296]
[1761194623954,3.407,3850.0,3849.9,2.72705266]
[1761194624278,1.754,3851.4,3849.9,2.72705266]
[1761194624279,3.409,3851.2,3850.0,3.05940259]
[1761194625079,6.0056232,3851.2,3850.0,3.05940259]
[1761194625279,3.416,3850.6,3850.0,3.05940259]
[1761194627194,2.59646405,3851.4,3850.0,3.05940259]
[1761194627357,3.415,3850.7,3850.0,3.05940259]
[1761194627787,3.415,3850.7,3850.0,2.59740259]
[1761194627957,3.415,3850.7,3850.0,3.05940259]
[1761194628163,3.415,3850.7,3849.6,0.462]
[1761194628361,6.01198842,3850.7,3849.7,3.00427805]
[1761194628562,3.415,3850.7,3849.8,2.59752113]
[1761194628760,6.01193533,3850.7,3849.8,2.59752113]
[1761194629000,6.01193533,3850.7,3849.4,0.2267]
[1761194629001,3.415,3850.7,3849.4,0.2267]
[1761194629303,3.411,3850.0,3849.4,2.59778727]
[1761194629665,0.3,3851.3,3850.0,2.59740259]
[1761194629865,3.411,3850.3,3849.5,0.462]
[1761194630076,3.411,3850.3,3849.9,2.5974045]
[1761194630270,3.411,3850.3,3850.0,2.59740259]
[1761194630867,3.411,3850.3,3849.9,2.59745956]
[1761194631068,3.411,3850.3,3849.5,0.462]
[1761194631069,3.411,3850.3,3849.1,0.2267]
[1761194631382,3.5101,3850.3,3849.5,2.59773303]
[1761194631583,0.35211,3850.1,3849.5,2.59773303]
[1761194631793,0.35211,3850.1,3850.0,2.59740259]
[1761194631794,0.001,3850.1,3850.0,2.59740259]
[1761194632110,0.3,3852.1,3851.2,2.59659326]
[1761194632284,0.3,3852.1,3850.1,2.0172]
[1761194632498,0.687,3851.7,3851.0,2.59667167]
[1761194632697,0.687,3851.7,3851.2,2.59659326]
[1761194632897,0.3,3852.1,3851.2,2.59659326]
[1761194632898,0.3,3852.1,3851.2,2.82329326]
[1761194633124,0.867,3852.1,3851.2,3.28529326]
[1761194633306,0.963,3852.0,3851.2,3.28529326]
[1761194634031,0.3,3852.1,3851.2,3.28529326]
[1761194634201,1.482,3852.0,3851.2,3.41489326]
[1761194634526,0.3,3852.1,3851.2,3.88645099]
[1761194635101,0.099,3851.9,3851.0,2.5966614]
[1761194635406,0.099,3851.9,3851.1,2.59664868]
[1761194635610,0.099,3851.9,3850.7,2.59687509]
[1761194635911,3.431,3851.2,3850.7,2.59686633]
[1761194636115,3.431,3851.2,3850.9,2.59677147]
[1761194636628,3.431,3851.2,3851.0,2.59671027]
[1761194637241,3.431,3851.2,3851.1,2.59666069]
[1761194637423,3.73,3851.3,3851.2,2.59659326]
[1761194637993,0.3,3851.3,3851.2,2.59659326]
[1761194639393,0.3,3851.3,3851.1,0.2267]
[1761194639594,0.3,3851.3,3851.2,2.59659326]
[1761194640436,0.301,3851.3,3851.2,2.59659326]
[1761194641342,3.727,3851.3,3850.1,3.431]
[1761194641500,3.727,3851.3,3850.4,2.59712792]
[1761194641501,4.0997,3851.3,3850.4,2.59712792]
[1761194641941,6.69624389,3851.3,3850.3,2.59719226]
[1761194642297,6.69624389,3851.3,3850.4,2.59712834]
[1761194642522,0.9391639,3851.2,3850.4,2.59712834]
[1761194642726,3.423,3851.2,3850.5,2.59705823]
[1761194642934,3.423,3851.1,3850.6,2.59699507]
[1761194643455,3.423,3851.1,3850.2,2.59723387]
[1761194643763,3.423,3851.1,3850.3,2.59715134]
[1761194643895,2.59678754,3851.0,3850.1,0.002]
[1761194644099,4.19131939,3851.1,3850.1,0.002]
[1761194644337,6.78802273,3851.1,3850.1,0.002]
[1761194644503,0.1296,3850.9,3850.3,0.1296]
[1761194644825,0.82136227,3850.9,3850.3,0.1296]
[1761194645004,2.59686328,3850.8,3850.3,0.1296]
[1761194645397,2.59693588,3850.7,3850.3,0.1296]
[1761194645603,2.69593588,3850.7,3850.3,0.1296]
[1761194645804,3.41817465,3850.9,3850.1,0.002]
[1761194645805,2.59705584,3850.6,3850.1,0.002]
[1761194646127,3.41816264,3850.9,3850.1,0.002]
[1761194646128,3.419,3850.5,3850.2,0.1296]
[1761194647119,3.419,3850.5,3850.3,0.2334]
[1761194647553,3.419,3850.5,3850.3,0.7065]
[1761194647762,3.419,3850.5,3850.2,0.1296]
[1761194648536,4.02058739,3850.5,3850.2,0.1296]
[1761194648770,6.14566941,3850.5,3850.1,0.002]
[1761194648962,3.5486,3850.5,3850.2,0.2334]
[1761194649174,0.1296,3850.8,3850.2,0.363]
[1761194649344,3.419,3852.0,3850.3,0.4731]
[1761194649529,0.3,3852.1,3850.3,0.4731]
[1761194649530,3.625,3851.3,3850.3,0.4731]
[1761194650156,3.625,3851.3,3850.5,2.5970523]
[1761194651127,2.59665071,3851.2,3850.2,0.2334]
[1761194651332,2.59665071,3851.2,3850.3,0.4731]
[1761194651632,2.59659509,3851.2,3850.3,0.4731]
[1761194651935,2.59667275,3851.1,3850.2,0.2334]
[1761194653856,0.68535056,3851.2,3850.2,0.7065]
[1761194654633,2.59672111,3851.1,3850.2,0.7065]
[1761194655258,0.68535056,3851.2,3850.3,0.4731]
[1761194655455,0.68535056,3851.2,3850.2,0.2334]
[1761194655456,3.02774406,3851.1,3850.1,0.002]
[1761194655687,2.59679798,3850.9,3850.1,0.2354]
[1761194655887,3.421,3850.8,3850.1,0.2354]
[1761194656297,3.421,3850.8,3850.1,3.30582679]
[1761194656593,3.421,3850.8,3850.2,0.4731]
[1761194658838,3.421,3850.8,3850.1,0.2354]
[1761194658839,2.59697626,3850.7,3850.1,0.002]
[1761194659261,2.72657626,3850.7,3850.2,0.1296]
[1761194659662,0.1296,3850.7,3850.2,0.1296]
[1761194661809,0.1296,3850.7,3850.3,0.4731]
[1761194662277,0.8088364,3850.7,3850.3,0.4731]
[1761194662621,0.8088364,3850.7,3850.2,0.1296]
[1761194663294,0.8088364,3850.7,3850.2,0.6027]
[1761194663904,0.1296,3850.7,3850.3,0.4731]
[1761194664092,0.1296,3850.7,3850.2,0.1296]
[1761194664696,0.1296,3850.7,3850.1,0.002]
[1761194664697,2.69593042,3850.7,3850.1,0.002]
[1761194664898,0.1296,3850.5,3850.1,0.002]
[1761194665203,3.413,3850.4,3850.1,0.002]
[1761194667208,4.29656078,3850.4,3850.1,0.002]
[1761194667522,2.59726767,3850.2,3850.1,0.002]
[1761194669116,2.69626767,3850.2,3850.1,0.002]
[1761194669415,2.59726767,3850.2,3850.1,0.002]
[1761194669718,2.69626767,3850.2,3850.1,0.002]
[1761194669922,3.65526442,3850.2,3850.1,0.002]
[1761194672588,5.21046442,3850.2,3850.1,0.002]
[1761194673120,5.71734442,3850.2,3850.1,0.002]
[1761194673420,2.59769682,3849.6,3848.6,0.4321]
[1761194673628,2.59788942,3849.3,3848.6,0.4321]
[1761194673828,3.405,3849.2,3848.6,0.4321]
[1761194674222,6.00294332,3849.2,3848.5,0.2342]
[1761194674554,6.00294332,3849.2,3848.6,0.4321]
[1761194675443,2.59801216,3849.1,3848.6,0.4321]
[1761194675739,3.4107666,3849.1,3848.6,0.4321]
[1761194675899,0.81275444,3849.1,3848.5,0.2342]
[1761194676100,3.405,3849.2,3848.5,0.2342]
[1761194676302,3.405,3849.2,3848.5,0.6663]
[1761194676502,6.00298211,3849.2,3848.5,0.6663]
[1761194676702,2.59801126,3849.1,3848.5,0.6663]
[1761194677562,0.25976968,3849.5,3848.5,0.2342]
[1761194677735,2.59789201,3849.3,3848.8,0.1296]
[1761194677904,3.404,3849.2,3848.8,0.1296]